bitfinex-derivatives/quotes_ETHF0:USTF0_20230902
["timestamp","ask_amount","ask_price","bid_price","bid_amount"]
[1693695774258,11.35743734,1637.5,1637.3,1.60271238]
[1693695774459,9.50599685,1637.4,1637.3,1.60271238]
[1693695775054,10.61201276,1637.4,1637.2,4.23121238]
[1693695775251,10.29263875,1637.3,1637.2,4.23121238]
[1693695775453,10.29263875,1637.3,1637.2,2.6285]
[1693695776459,11.8919683,1637.3,1637.2,2.6285]
[1693695777460,9.49147281,1637.3,1637.2,2.6285]
[1693695788567,11.8919683,1637.3,1637.2,2.6285]
[1693695789373,10.29263875,1637.3,1637.2,2.6285]
[1693695797480,10.59820649,1637.3,1637.2,2.6285]
[1693695797879,10.29263875,1637.3,1637.2,2.6285]
[1693695798069,10.59820658,1637.3,1637.2,2.6285]
[1693695798274,10.29263875,1637.3,1637.2,2.6285]
[1693695802489,10.59820794,1637.3,1637.2,2.6285]
[1693695806393,11.39950473,1637.3,1637.2,2.6285]
[1693695814395,12.20446973,1637.3,1637.2,2.6285]
[1693695814595,8.19771245,1637.3,1637.2,2.6285]
[1693695815192,12.20446973,1637.3,1637.2,2.6285]
[1693695816387,18.31587644,1637.3,1637.2,2.6285]
[1693695820297,18.31587644,1637.3,1637.2,4.23121238]
[1693695822407,12.20446973,1637.3,1637.2,4.23121238]
[1693695823506,12.20446973,1637.3,1637.2,6.63595292]
[1693695828511,18.31589228,1637.3,1637.2,4.23121238]
[1693695830415,18.31589228,1637.3,1637.2,1.60271238]
[1693695830608,14.309135,1637.3,1637.2,1.60271238]
[1693695831009,18.31581943,1637.3,1637.2,1.60271238]
[1693695832109,14.309135,1637.3,1637.2,1.60271238]
[1693695832311,18.31581452,1637.3,1637.2,1.60271238]
[1693695832510,14.309135,1637.3,1637.2,1.60271238]
[1693695832912,18.31593793,1637.3,1637.2,1.60271238]
[1693695835409,18.31593793,1637.3,1637.2,4.00745292]
[1693695836806,18.31593793,1637.3,1637.2,1.60271238]
[1693695848425,18.2739756,1637.3,1637.2,1.60271238]
[1693695849127,18.2739756,1637.3,1637.2,2.40474054]
[1693695849331,12.16255305,1637.3,1637.2,2.40474054]
[1693695850231,8.15575012,1637.3,1637.2,2.40474054]
[1693695850639,11.36187269,1637.3,1637.2,2.40474054]
[1693695855243,9.01169176,1637.3,1637.2,5.27190406]
[1693695859142,11.36187269,1637.3,1637.2,5.27190406]
[1693695865348,11.36187269,1637.3,1637.2,2.40474054]
[1693695865852,11.36187269,1637.3,1637.2,4.00789343]
[1693695866052,12.16255305,1637.3,1637.2,1.60315289]
[1693695869843,12.16255305,1637.3,1637.2,4.47031641]
[1693695870551,5.80556919,1637.3,1637.2,4.47031641]
[1693695870848,9.81237212,1637.3,1637.2,4.47031641]
[1693695871454,9.85433445,1637.3,1637.2,4.47031641]
[1693695871953,12.20451538,1637.3,1637.2,4.47031641]
[1693695872956,11.40278786,1637.3,1637.2,6.87505695]
[1693695876552,11.40278786,1637.3,1637.2,4.47031641]
[1693695877257,11.40278786,1637.3,1637.2,6.87505695]
[1693695878261,8.19771245,1637.3,1637.2,6.87505695]
[1693695878860,11.4031432,1637.3,1637.2,6.87505695]
[1693695879060,12.20451538,1637.3,1637.2,4.47031641]
[1693695879254,12.20451538,1637.3,1637.2,1.60315289]
[1693695880862,12.20451538,1637.3,1637.2,4.00789343]
[1693695881061,18.315814,1637.3,1637.2,1.60315289]
[1693695882158,18.31579637,1637.3,1637.2,1.60315289]
[1693695887967,12.20451538,1637.3,1637.2,4.00789343]
[1693695893463,12.20451538,1637.3,1637.2,2.40474054]
[1693695896168,12.20451538,1637.3,1637.2,4.00845836]
[1693695896369,12.20451538,1637.3,1637.2,2.40474054]
[1693695900172,18.3158246,1637.3,1637.2,4.00847891]
[1693695901670,18.3158246,1637.3,1637.2,6.87564243]
[1693695902576,18.3158246,1637.3,1637.2,4.00847891]
[1693695903174,18.3158246,1637.3,1637.2,1.60373837]
[1693695903578,23.63453529,1637.3,1637.2,1.60373837]
[1693695903876,23.63453529,1637.3,1637.2,1.60377244]
[1693695903877,18.31707627,1637.3,1637.2,1.60377244]
[1693695905778,18.31707627,1637.3,1637.2,4.0094311]
[1693695907072,18.31707627,1637.3,1637.2,1.60377244]
[1693695909278,18.31707627,1637.3,1637.2,4.0094311]
[1693695909873,18.31707627,1637.3,1637.2,6.87659462]
[1693695910280,18.31707627,1637.3,1637.2,5.27282218]
[1693695918178,18.31707627,1637.3,1637.2,6.87686356]
[1693695921870,18.31707627,1637.3,1637.2,4.00970004]
[1693695923082,18.31759649,1637.3,1637.2,4.01024793]
[1693695925175,18.31759649,1637.3,1637.2,2.40614876]
[1693695925883,18.31759649,1637.3,1637.2,5.27331228]
[1693695927784,9.81415209,1637.3,1637.2,5.27331228]
[1693695928178,3.51269681,1637.3,1637.2,6.07536187]
[1693695928483,2.40458315,1637.3,1637.2,6.07536187]
[1693695928688,4.00772875,1637.3,1637.2,6.87741146]
[1693695929096,1.6031456,1637.3,1637.2,6.87741146]
[1693695930388,1.6031456,1637.3,1637.2,6.07197834]
[1693695930590,1.6031456,1637.3,1637.2,2.86716352]
[1693695930981,1.6031456,1637.3,1637.2,6.07197936]
[1693695931983,1.6031456,1637.3,1637.2,11.57197936]
[1693695932486,4.50673254,1637.4,1637.2,11.57197936]
[1693695932683,4.50673254,1637.4,1637.3,2.46393313]
[1693695932879,4.50673254,1637.4,1637.3,7.23586961]
[1693695933084,4.50673254,1637.4,1637.3,9.71866961]
[1693695933284,2.90358694,1637.4,1637.3,9.71866961]
[1693695935284,4.50490211,1637.4,1637.3,9.71866961]
[1693695937484,2.10031896,1637.4,1637.3,9.71866961]
[1693695937685,4.50490211,1637.4,1637.3,9.71866961]
[1693695937885,4.50490211,1637.4,1637.3,11.31976414]
[1693695938487,2.10031896,1637.4,1637.3,11.31976414]
[1693695940396,2.10031896,1637.4,1637.3,9.71866961]
[1693695942295,2.10031896,1637.4,1637.3,11.31937361]
[1693695948401,2.10031896,1637.4,1637.3,8.91654048]
[1693695950004,2.10031896,1637.4,1637.3,11.25827361]
[1693695950197,2.10031896,1637.4,1637.3,8.85544048]
[1693695955405,2.10031896,1637.4,1637.3,9.65756961]
[1693695964112,2.10031896,1637.4,1637.3,9.65479131]
[1693695964113,2.09995002,1637.4,1637.3,9.65479131]
[1693695966515,3.70124057,1637.4,1637.3,9.65484018]
[1693695966818,2.10029434,1637.4,1637.3,9.65484018]
[1693695970512,4.50223017,1637.4,1637.3,10.45487475]
[1693695970718,2.90093962,1637.4,1637.3,9.65608991]
[1693695972418,2.90093962,1637.4,1637.3,10.45487475]
[1693695973420,0.804521,1637.4,1637.3,10.45487475]
[1693695974426,4.0071021,1637.4,1637.3,10.45487475]
[1693695977728,3.21020344,1637.4,1637.3,10.45487475]
[1693695981124,5.56038437,1637.4,1637.3,10.45487475]
[1693695985228,3.21020344,1637.4,1637.3,10.45487475]
[1693695992732,4.0071021,1637.4,1637.3,10.45487475]
[1693695995233,6.35728303,1637.4,1637.3,10.45487475]
[1693695997833,4.0071021,1637.4,1637.3,10.45487475]
[1693696000933,3.2103176,1637.4,1637.3,10.45487475]
[1693696001832,5.56049853,1637.4,1637.3,10.45487475]
[1693696006634,6.35728303,1637.4,1637.3,10.45487475]
[1693696006834,3.15470193,1637.4,1637.3,10.45487475]
[1693696007534,5.56047257,1637.4,1637.3,10.45487475]
[1693696007936,6.35728303,1637.4,1637.3,10.45487475]
[1693696011937,11.85728303,1637.4,1637.3,10.45487475]
[1693696012831,11.85728303,1637.4,1637.3,8.18493827]
[1693696015943,9.5071021,1637.4,1637.3,8.18493827]
[1693696020149,11.85728303,1637.4,1637.3,8.18493827]
[1693696020346,8.65470193,1637.4,1637.3,8.18493827]
[1693696020847,11.85728303,1637.4,1637.3,8.18493827]
[1693696021053,8.65470193,1637.4,1637.3,8.18493827]
[1693696021645,11.85728303,1637.4,1637.3,8.18493827]
[1693696098431,9.5071021,1637.4,1637.3,8.18493827]
[1693696101030,11.85728303,1637.4,1637.3,8.18493827]
[1693696106924,6.35728303,1637.4,1637.3,8.18493827]
[1693696107128,5.56037349,1637.4,1637.3,8.18493827]
[1693696107333,5.56037349,1637.4,1637.3,4.9848]
[1693696107532,5.56037349,1637.4,1637.3,8.19067718]
[1693696108335,5.56037349,1637.4,1637.3,4.9848]
[1693696108535,5.25485628,1637.4,1637.3,4.9848]
[1693696108835,5.25485628,1637.4,1637.3,8.19041563]
[1693696110536,2.90467535,1637.4,1637.3,8.19041563]
[1693696113638,3.21018932,1637.4,1637.3,8.19041563]
[1693696117835,5.56037025,1637.4,1637.3,8.19041563]
[1693696119844,5.25485628,1637.4,1637.3,8.19041563]
[1693696120539,5.25485628,1637.4,1637.3,4.9848]
[1693696120745,5.25485628,1637.4,1637.3,8.18987844]
[1693696123535,2.84918472,1637.4,1637.3,8.18983322]
[1693696123735,5.2542202,1637.4,1637.3,8.18983322]
[1693696133149,2.90403927,1637.4,1637.3,8.18983322]
[1693696135660,3.20955455,1637.4,1637.3,8.18983322]
[1693696136650,5.55973548,1637.4,1637.3,8.18983322]
[1693696137357,3.20955455,1637.4,1637.3,8.18983322]
[1693696141461,5.55973548,1637.4,1637.3,8.18983322]
[1693696141659,3.20955455,1637.4,1637.3,8.18983322]
[1693696142261,5.55973548,1637.4,1637.3,8.18983322]
[1693696142762,5.2542202,1637.4,1637.3,8.18983322]
[1693696147567,2.90403927,1637.4,1637.3,8.18983322]
[1693696147764,2.90403927,1637.4,1637.3,8.99109153]
[1693696148859,2.90403927,1637.4,1637.3,4.9848]
[1693696149068,2.90403927,1637.4,1637.3,8.99109153]
[1693696150767,2.90403927,1637.4,1637.3,8.19045205]
[1693696150964,3.20955027,1637.4,1637.3,8.19045205]
[1693696152673,3.20955027,1637.4,1637.3,4.9848]
[1693696153374,5.5597312,1637.4,1637.3,4.9848]
[1693696156877,5.5597312,1637.4,1637.3,8.19062717]
[1693696157774,5.2542202,1637.4,1637.3,8.99109153]
[1693696172896,5.55973083,1637.4,1637.3,8.19058045]
[1693696180697,3.2095499,1637.4,1637.3,8.19058045]
[1693696180898,2.90403927,1637.4,1637.3,8.99109153]
[1693696181099,1.60362732,1637.4,1637.3,9.05219153]
[1693696181296,2.40503548,1637.5,1637.4,0.0611]
[1693696181598,2.40503548,1637.5,1637.4,9.20467641]
[1693696181901,2.40503548,1637.6,1637.4,9.20467641]
[1693696182101,2.40503548,1637.6,1637.5,3.26530373]
[1693696182102,2.71052071,1637.6,1637.5,3.26530373]
[1693696182297,2.40503548,1637.6,1637.5,12.6233607]
[1693696182499,16.20003548,1637.7,1637.6,0.0611]
[1693696182696,16.20003548,1637.7,1637.6,3.26448511]
[1693696182895,16.20003548,1637.7,1637.6,8.90401442]
[1693696184002,13.795,1637.7,1637.6,8.90401442]
[1693696184398,13.795,1637.7,1637.6,8.40158511]
[1693696185204,7.97798558,1637.8,1637.6,8.40158511]
[1693696185405,2.44699781,1637.8,1637.7,4.00046101]
[1693696185605,5.10263728,1637.8,1637.7,6.51746101]
[1693696185805,2.44699781,1637.8,1637.7,6.5077844]
[1693696192709,2.44699781,1637.8,1637.7,4.9076]
[1693696196114,2.44699781,1637.8,1637.7,6.5077844]
[1693696196415,0.04196233,1637.8,1637.7,6.5077844]
[1693696198815,2.44699781,1637.8,1637.7,4.9076]
[1693696200311,0.04196233,1637.8,1637.7,4.9076]
[1693696200516,2.44699781,1637.8,1637.7,4.9076]
[1693696206021,4.79717874,1637.8,1637.7,4.9076]
[1693696209519,2.44699781,1637.8,1637.7,4.9076]
[1693696212428,4.79717874,1637.8,1637.7,4.9076]
[1693696212624,4.79717874,1637.8,1637.6,4.06156101]
[1693696212825,1.60467161,1637.7,1637.6,4.06156101]
[1693696213021,1.60467161,1637.7,1637.6,1.6612844]
[1693696213629,1.64663394,1637.7,1637.6,1.6001844]
[1693696213826,0.04196233,1637.6,1637.5,1.6001844]
[1693696214124,4.79717874,1637.6,1637.5,1.6001844]
[1693696225236,5.10268015,1637.6,1637.5,1.6001844]
[1693696233236,4.79717874,1637.6,1637.5,1.6001844]
[1693696240345,5.10268075,1637.6,1637.5,1.6001844]
[1693696246355,2.69764527,1637.6,1637.5,1.6001844]
[1693696248454,5.09970268,1637.6,1637.5,1.6001844]
[1693696249050,2.74952175,1637.6,1637.5,4.46734792]
[1693696249251,2.44401974,1637.6,1637.5,4.46734792]
[1693696249452,2.7495196,1637.6,1637.5,4.46734792]
[1693696252457,2.7495196,1637.6,1637.5,6.86762453]
[1693696253457,0.34746219,1637.6,1637.5,6.86762453]
[1693696254561,3.55417616,1637.6,1637.5,5.26744013]
[1693696255161,5.90435709,1637.6,1637.5,6.86870818]
[1693696255366,3.55417616,1637.6,1637.5,5.26744013]
[1693696258470,5.90435709,1637.6,1637.5,5.26744013]
[1693696258765,2.39214326,1637.6,1637.5,5.26744013]
[1693696258964,2.39214326,1637.6,1637.5,5.2712254]
[1693696258965,5.59868663,1637.6,1637.5,5.2712254]
[1693696259162,5.90418699,1637.6,1637.5,5.2712254]
[1693696259362,5.90418699,1637.6,1637.5,2.86716352]
[1693696260373,3.55400606,1637.6,1637.5,5.27194469]
[1693696262070,3.55400606,1637.6,1637.5,2.86716352]
[1693696262470,3.55400606,1637.6,1637.5,5.27194417]
[1693696263170,3.55400606,1637.6,1637.5,2.86716352]
[1693696263570,0.34746269,1637.6,1637.5,5.27218388]
[1693696266874,2.69764362,1637.6,1637.5,5.27218388]
[1693696267775,6.70582283,1637.6,1637.5,5.27218388]
[1693696267976,4.3556419,1637.6,1637.5,5.27218388]
[1693696268474,0.34746269,1637.6,1637.5,5.27218388]
[1693696269373,0.34746275,1637.6,1637.5,5.27219763]
[1693696270577,3.24943601,1637.6,1637.5,2.86716352]
[1693696270776,3.55493643,1637.6,1637.5,2.86716352]
[1693696271181,5.90511736,1637.6,1637.5,2.86716352]
[1693696273072,3.55493643,1637.6,1637.5,2.86716352]
[1693696273474,5.90511736,1637.6,1637.5,2.86716352]
[1693696273871,5.90511736,1637.6,1637.5,5.27222315]
[1693696274773,3.55493643,1637.6,1637.5,5.27222315]
[1693696274970,3.55493643,1637.6,1637.5,2.86716352]
[1693696276676,3.55493643,1637.6,1637.5,6.07387566]
[1693696277178,3.55493643,1637.6,1637.5,2.86716352]
[1693696277376,3.55493643,1637.6,1637.5,6.07387566]
[1693696278675,3.55493643,1637.6,1637.5,5.27212027]
[1693696285683,3.55493643,1637.6,1637.5,6.07387566]
[1693696292789,3.55493643,1637.6,1637.5,5.27167653]
[1693696300502,5.90511736,1637.6,1637.5,5.27167653]
[1693696300897,5.90511736,1637.6,1637.5,6.07387566]
[1693696301203,3.55493643,1637.6,1637.5,6.07387566]
[1693696315903,3.55493643,1637.6,1637.5,5.27181436]
[1693696321715,3.55507696,1637.6,1637.5,5.27189634]
[1693696323014,3.51311463,1637.6,1637.5,6.13457395]
[1693696328328,0.30549745,1637.6,1637.5,6.13457395]
[1693696329927,2.40487732,1637.6,1637.5,6.13457395]
[1693696330226,2.71037477,1637.6,1637.5,6.13457395]
[1693696331122,2.65567838,1637.6,1637.5,6.13457395]
[1693696331625,0.30549745,1637.6,1637.5,6.13457395]
[1693696333426,2.40460072,1637.6,1637.5,6.13457395]
[1693696333622,2.71009817,1637.6,1637.5,6.13457395]
[1693696335319,2.71009817,1637.6,1637.5,6.07347395]
[1693696336123,2.7520605,1637.6,1637.5,6.07347395]
[1693696342538,5.10224143,1637.6,1637.5,6.07347395]
[1693696346939,2.7520605,1637.6,1637.5,6.07347395]
[1693696352846,5.10224143,1637.6,1637.5,6.07347395]
[1693696355449,2.7520605,1637.6,1637.5,6.07347395]
[1693696356145,5.10224143,1637.6,1637.5,6.07347395]
[1693696358253,2.69764071,1637.6,1637.5,6.07347395]
[1693696361144,5.10233395,1637.6,1637.5,6.07347395]
[1693696362550,2.75215302,1637.6,1637.5,6.07347395]
[1693696368348,3.55507696,1637.6,1637.5,6.07347395]
[1693696369453,5.90525789,1637.6,1637.5,6.07347395]
[1693696370753,3.55507696,1637.6,1637.5,6.07347395]
[1693696371253,5.90525789,1637.6,1637.5,6.07347395]
[1693696373353,3.55507696,1637.6,1637.5,6.07347395]
[1693696374950,2.71098843,1637.6,1637.5,6.13457395]
[1693696375146,4.00896184,1637.7,1637.6,0.0611]
[1693696375353,1.60347086,1637.7,1637.6,6.3373487]
[1693696375552,1.60347086,1637.7,1637.6,11.3904487]
[1693696376360,1.60347086,1637.8,1637.6,11.3904487]
[1693696376654,2.40549098,1637.8,1637.7,3.20225506]
[1693696376852,4.00759905,1637.8,1637.7,6.06941858]
[1693696377052,2.40549098,1637.8,1637.7,6.06941858]
[1693696377454,4.007358,1637.8,1637.7,6.06941858]
[1693696379453,1.60186702,1637.8,1637.7,5.26819137]
[1693696379647,1.60186702,1637.8,1637.7,2.86716352]
[1693696379856,1.60186702,1637.8,1637.7,5.26816227]
[1693696380256,1.60186702,1637.8,1637.7,2.86716352]
[1693696381156,1.60186702,1637.8,1637.7,6.06941858]
[1693696381357,1.60186702,1637.8,1637.7,2.86716352]
[1693696381555,1.60186702,1637.8,1637.7,6.06941858]
[1693696382358,1.60186702,1637.8,1637.7,5.26784474]
[1693696389868,3.95204795,1637.8,1637.7,5.26784474]
[1693696391971,3.95204795,1637.8,1637.7,2.40068122]
[1693696394172,3.99401028,1637.8,1637.7,2.40068122]
[1693696394472,3.99401028,1637.8,1637.7,5.26784474]
[1693696395075,1.64382935,1637.8,1637.7,5.26784474]
[1693696400773,1.64382935,1637.8,1637.7,5.2665644]
[1693696400774,1.64235998,1637.8,1637.7,5.2665644]
[1693696408280,3.99254091,1637.8,1637.7,5.2665644]
[1693696411785,1.64235998,1637.8,1637.7,5.2665644]
[1693696414288,1.64235998,1637.8,1637.7,2.86716352]
[1693696415287,1.64235998,1637.8,1637.7,6.06636469]
[1693696416381,4.04295645,1637.8,1637.7,6.06636469]
[1693696418290,2.4425588,1637.8,1637.7,6.06636469]
[1693696420286,2.74800201,1637.8,1637.7,6.06636469]
[1693696420883,0.34740554,1637.8,1637.7,6.06636469]
[1693696422394,3.54820084,1637.8,1637.7,6.06636469]
[1693696426697,3.54820084,1637.8,1637.7,6.56572326]
[1693696427900,2.71066986,1637.8,1637.7,3.36652209]
[1693696432305,5.06085079,1637.8,1637.7,3.36652209]
[1693696432500,2.71066986,1637.8,1637.7,3.36652209]
[1693696433312,5.06085079,1637.8,1637.7,3.36652209]
[1693696433807,2.71066986,1637.8,1637.7,3.36652209]
[1693696435409,5.06085079,1637.8,1637.7,3.36652209]
[1693696436010,5.06085079,1637.8,1637.7,6.57185387]
[1693696436309,2.71066986,1637.8,1637.7,6.57185387]
[1693696436809,5.06085079,1637.8,1637.7,6.57185387]
[1693696438213,5.06085079,1637.8,1637.7,3.36652209]
[1693696438413,5.06085079,1637.8,1637.7,6.57187236]
[1693696440213,5.06085079,1637.8,1637.7,0.49935857]
[1693696440514,5.06085079,1637.8,1637.7,3.99900146]
[1693696440710,5.06085079,1637.8,1637.7,6.86616498]
[1693696440912,4.75540758,1637.8,1637.7,6.86616498]
[1693696442414,2.40522665,1637.8,1637.7,6.86616498]
[1693696444318,2.40522665,1637.8,1637.7,2.86716352]
[1693696445317,0.54250737,1637.9,1637.7,2.86716352]
[1693696445520,4.75504207,1637.8,1637.7,2.86716352]
[1693696445811,2.40486114,1637.8,1637.7,2.86716352]
[1693696446621,2.40486114,1637.8,1637.7,6.87313731]
[1693696448422,2.44682347,1637.8,1637.7,6.87313731]
[1693696448628,4.04978884,1637.8,1637.7,6.87313731]
[1693696451124,1.6449277,1637.8,1637.7,6.87313731]
[1693696452823,3.99510863,1637.8,1637.7,6.87313731]
[1693696455232,3.99510863,1637.8,1637.7,7.36924011]
[1693696457728,1.6449277,1637.8,1637.7,7.36924011]
[1693696458326,4.04978884,1637.8,1637.7,3.36326632]
[1693696459430,6.39996977,1637.8,1637.7,3.36326632]
[1693696461628,6.39996977,1637.8,1637.7,6.56658465]
[1693696461840,6.39996977,1637.8,1637.7,3.36326632]
[1693696462038,6.39996977,1637.8,1637.7,6.56658406]
[1693696462335,4.04978884,1637.8,1637.7,6.56658406]
[1693696463235,6.39996977,1637.8,1637.7,6.56658406]
[1693696464637,6.39996977,1637.8,1637.7,3.36326632]
[1693696466037,6.39996977,1637.8,1637.7,6.56657033]
[1693696466240,6.39996977,1637.8,1637.7,7.36924011]
[1693696466241,3.99510863,1637.8,1637.7,7.36924011]
[1693696467838,1.6449277,1637.8,1637.7,7.36924011]
[1693696468231,3.99510863,1637.8,1637.7,7.36924011]
[1693696476246,1.6449277,1637.8,1637.7,7.36924011]
[1693696480649,3.99510863,1637.8,1637.7,7.36924011]
[1693696487539,1.6449277,1637.8,1637.7,7.36924011]
[1693696492853,3.99510863,1637.8,1637.7,7.36924011]
[1693696495356,6.39996977,1637.8,1637.7,7.36924011]
[1693696496356,3.99510863,1637.8,1637.7,7.36924011]
[1693696497559,1.6449277,1637.8,1637.7,7.36924011]
[1693696497862,3.99510863,1637.8,1637.7,7.36924011]
[1693696498259,6.39996977,1637.8,1637.7,7.36924011]
[1693696498460,4.04978884,1637.8,1637.7,7.36924011]
[1693696500063,3.99510863,1637.8,1637.7,7.36924011]
[1693696500263,1.6449277,1637.8,1637.7,7.36924011]
[1693696502064,3.99510863,1637.8,1637.7,7.36924011]
[1693696504558,1.6449277,1637.8,1637.7,7.36924011]
[1693696517265,1.6449277,1637.8,1637.7,12.38254011]
[1693696518569,3.99510863,1637.8,1637.7,12.38254011]
[1693696520270,1.6449277,1637.8,1637.7,12.38254011]
[1693696522977,3.99510863,1637.8,1637.7,12.38254011]
[1693696523769,1.6449277,1637.8,1637.7,12.38254011]
[1693696526078,3.99510863,1637.8,1637.7,12.38254011]
[1693696526277,1.6449277,1637.8,1637.7,12.38254011]
[1693696535781,3.99510863,1637.8,1637.7,12.38254011]
[1693696536682,1.6449277,1637.8,1637.7,12.38254011]
[1693696542489,3.99510863,1637.8,1637.7,12.38254011]
[1693696546287,3.99510863,1637.8,1637.7,8.37656632]
[1693696547894,3.99510863,1637.8,1637.7,12.38214889]
[1693696548092,1.6449277,1637.8,1637.7,12.38214889]
[1693696549699,1.6449277,1637.8,1637.7,8.37656632]
[1693696554797,0.04196233,1637.8,1637.7,8.37656632]
[1693696559106,1.6549277,1637.9,1637.7,8.37656632]
[1693696559308,1.6549277,1637.9,1637.8,6.2730787]
[1693696559604,1.6549277,1637.9,1637.8,6.75630485]
[1693696560305,0.05196233,1637.9,1637.8,6.75630485]
[1693696563109,0.01,1637.9,1637.8,2.75316263]
[1693696563310,0.01,1637.9,1637.8,2.81426263]
[1693696566116,0.01,1637.9,1637.8,9.32052163]
[1693696578122,0.01,1637.9,1637.8,13.31549792]
[1693696578724,0.01,1637.9,1637.8,9.32052163]
[1693696579126,0.01,1637.9,1637.8,13.31542585]
[1693696579325,0.04196233,1638.0,1637.9,0.0611]
[1693696579521,0.04196233,1638.0,1637.9,2.92826352]
[1693696579725,0.04196233,1638.0,1637.9,14.68521245]
[1693696582022,0.04196233,1638.0,1637.9,18.68011667]
[1693696582523,0.04196233,1638.0,1637.9,16.12571667]
[1693696582724,0.04196233,1638.0,1637.9,18.71761667]
[1693696586230,0.04196233,1638.0,1637.9,17.91869935]
[1693696588833,0.04196233,1638.0,1637.9,14.72271245]
[1693696589041,0.04196233,1638.0,1637.9,17.91897652]
[1693696589337,0.04196233,1638.0,1637.9,14.72271245]
[1693696590736,0.04196233,1638.0,1637.9,18.71761667]
[1693696592635,0.04196233,1638.0,1637.9,19.20369842]
[1693696597140,0.04196233,1638.0,1637.9,16.61179842]
[1693696597343,0.04196233,1638.0,1637.9,19.11459842]
[1693696597644,0.04196233,1638.0,1637.9,15.1196942]
[1693696601843,11.8916175,1638.2,1637.9,15.1196942]
[1693696602044,6.48636537,1638.2,1638.1,3.19905255]
[1693696602547,4.00782651,1638.2,1638.1,6.06621607]
[1693696604451,2.40486114,1638.2,1638.1,6.06621607]
[1693696608043,1.60230182,1638.2,1638.1,6.92707921]
[1693696608246,0.04196233,1638.3,1638.1,2.92826352]
[1693696608453,0.04196233,1638.3,1638.2,2.26993648]
[1693696608843,0.04196233,1638.3,1638.2,8.78521183]
[1693696609348,9.39385395,1638.5,1638.3,0.0611]
[1693696609554,7.25326114,1638.5,1638.4,8.33500379]
[1693696609854,8.85465356,1638.5,1638.4,14.98708546]
[1693696610050,4.00625356,1638.5,1638.4,14.98708546]
[1693696610246,1.60139242,1638.5,1638.4,14.98708546]
[1693696610844,1.60139242,1638.5,1638.4,11.78918167]
[1693696611058,1.60139242,1638.5,1638.4,14.18634615]
[1693696611254,1.60139242,1638.5,1638.4,11.78918167]
[1693696611759,1.60139242,1638.5,1638.4,14.1863183]
[1693696613660,6.44851589,1638.6,1638.4,14.1863183]
[1693696613866,6.44851589,1638.6,1638.5,1.597444]
[1693696614256,1.64335475,1638.6,1638.5,1.597444]
[1693696614966,1.64335475,1638.6,1638.5,3.99458063]
[1693696615265,1.64335475,1638.6,1638.5,4.157744]
[1693696615462,1.64335475,1638.6,1638.5,6.55488063]
[1693696616161,0.04196233,1638.6,1638.5,4.157744]
[1693696616367,0.04196233,1638.6,1638.5,7.56363663]
[1693696617269,0.04196233,1638.6,1638.5,9.15951291]
[1693696617460,0.04196233,1638.6,1638.5,4.95743663]
[1693696618267,0.04196233,1638.6,1638.5,6.55296192]
[1693696619264,0.04196233,1638.6,1638.5,4.15582529]
[1693696620063,0.04196233,1638.6,1638.5,10.88560192]
[1693696620269,0.04196233,1638.6,1638.5,13.28273855]
[1693696622368,0.04196233,1638.6,1638.5,10.88560192]
[1693696625675,0.04196233,1638.6,1638.5,9.29007663]
[1693696629376,2.39214326,1638.6,1638.5,6.72977663]
[1693696631085,0.04196233,1638.6,1638.5,9.59694015]
[1693696631383,2.39214326,1638.6,1638.5,9.59694015]
[1693696632390,2.39214326,1638.6,1638.5,6.72977663]
[1693696633081,2.39214326,1638.6,1638.5,9.59694015]
[1693696633586,2.39214326,1638.6,1638.5,6.72977663]
[1693696634194,2.39214326,1638.6,1638.5,9.59694015]
[1693696636497,3.99353568,1638.6,1638.5,9.59694015]
[1693696637097,3.99353568,1638.6,1638.5,6.72977663]
[1693696637799,3.99353568,1638.6,1638.3,9.34704295]
[1693696638198,3.99353568,1638.6,1638.4,2.86716352]
[1693696638199,5.59820729,1638.6,1638.4,2.86716352]
[1693696642105,5.59820729,1638.6,1638.4,4.46268881]
[1693696642304,5.59820729,1638.6,1638.4,1.59552529]
[1693696643103,5.59820729,1638.6,1638.4,4.46268881]
[1693696647103,5.59820729,1638.6,1638.4,6.85982544]
[1693696648106,5.59820729,1638.6,1638.5,1.59552529]
[1693696649101,8.00306843,1638.6,1638.5,1.59552529]
[1693696651205,6.40167601,1638.6,1638.5,1.59552529]
[1693696652402,6.40167601,1638.6,1638.5,3.99266192]
[1693696652799,6.40167601,1638.6,1638.5,6.43286192]
[1693696653204,6.70698104,1638.6,1638.5,4.83733663]
[1693696653608,6.70698104,1638.6,1638.5,6.43598744]
[1693696653800,6.70698104,1638.6,1638.5,4.83733663]
[1693696654104,5.15842049,1638.6,1638.5,4.83733663]
[1693696654805,7.50860142,1638.6,1638.5,4.83733663]
[1693696655403,7.50860142,1638.6,1638.5,7.22863663]
[1693696656104,4.3021199,1638.6,1638.5,7.22863663]
[1693696657108,6.70457294,1638.6,1638.5,7.22863663]
[1693696658206,4.35439201,1638.6,1638.5,7.22863663]
[1693696658407,2.7497204,1638.6,1638.5,9.49857311]
[1693696658608,2.7497204,1638.6,1638.5,7.10143648]
[1693696660004,5.09990133,1638.6,1638.5,7.10143648]
[1693696660806,4.7945963,1638.6,1638.5,10.29934027]
[1693696661312,2.44441537,1638.6,1638.5,10.29934027]
[1693696667619,4.7945963,1638.6,1638.5,10.29934027]
[1693696668019,2.44441537,1638.6,1638.5,10.29934027]
[1693696674433,4.7945963,1638.6,1638.5,10.29934027]
[1693696675230,2.44441537,1638.6,1638.5,10.29934027]
[1693696676225,2.74970993,1638.6,1638.5,10.29934027]
[1693696676630,5.09989086,1638.6,1638.5,10.29934027]
[1693696677133,2.74970993,1638.6,1638.5,10.29934027]
[1693696677933,5.09989086,1638.6,1638.5,10.29934027]
[1693696679235,2.74970993,1638.6,1638.5,10.29934027]
[1693696683036,2.44441537,1638.6,1638.5,10.29934027]
[1693696684137,2.40245304,1638.6,1638.5,10.29934027]
[1693696685232,6.70456805,1638.6,1638.5,3.19790379]
[1693696688136,7.50859653,1638.6,1638.5,3.19790379]
[1693696688336,7.50859653,1638.6,1638.5,2.39998729]
[1693696689941,8.00236217,1638.6,1638.5,2.39998729]
[1693696693939,7.50859653,1638.6,1638.5,2.39998729]
[1693696694742,7.50859653,1638.6,1638.5,5.26715081]
[1693696697044,7.50859653,1638.6,1638.5,2.39998729]
[1693696701147,7.50859653,1638.6,1638.5,5.26715081]
[1693696702048,7.50859653,1638.6,1638.5,2.39998729]
[1693696712055,7.50859653,1638.6,1638.5,5.26715081]
[1693696712451,7.50859653,1638.6,1638.5,2.39998729]
[1693696715953,3.99681487,1638.6,1638.4,2.5861]
[1693696716154,7.2002488,1638.6,1638.5,2.39913826]
[1693696716352,7.50556315,1638.6,1638.5,2.39913826]
[1693696729170,7.50556315,1638.6,1638.5,4.77823826]
[1693696736679,7.50556315,1638.6,1638.5,2.3791]
[1693696740382,7.50556315,1638.6,1638.5,5.57795102]
[1693696741285,7.50556315,1638.6,1638.5,8.44511454]
[1693696741783,7.50556315,1638.6,1638.5,5.57795102]
[1693696742285,7.50556315,1638.6,1638.5,8.44511454]
[1693696742684,7.50556315,1638.6,1638.5,5.57795102]